fUST/lending_fUST_20240204
["ID","MTS","AMOUNT","RATE_DAILY","PERIOD"]
[313234646,1706985039793,-4486.95,0.00028767,2]
[313234647,1706985039802,-2420.27,0.00028767,2]
[313234648,1706985039812,-1034.52,0.00028767,2]
[313234649,1706985039821,-2834.10195647,0.00028917,2]
[313234650,1706985039830,-500.0,0.00029041,2]
[313234651,1706985039840,-500.0,0.00029041,2]
[313234652,1706985039850,-554.56,0.00029041,2]
[313234653,1706985039859,-500.0,0.00029041,2]
[313234654,1706985039869,-500.0,0.00029041,2]
[313234655,1706985039879,-4486.95,0.00029041,2]
[313234656,1706985039887,-2420.27,0.00029041,2]
[313234657,1706985039896,-1034.52,0.00029041,2]
[313234658,1706985039906,-1111.84878347,0.00029312,2]
[313234659,1706985039915,-1635.52107773,0.00029313,2]
[313234660,1706985039925,-156.57629202,0.00029313,2]
[313234661,1706985039934,-297.37206321,0.00029314,2]
[313234662,1706985039943,-500.0,0.00029315,2]
[313234663,1706985039953,-500.0,0.00029315,2]
[313234664,1706985039962,-554.56,0.00029315,2]
[313234665,1706985039971,-500.0,0.00029315,2]
[313234666,1706985039981,-500.0,0.00029315,2]
[313234667,1706985039991,-4486.95,0.00029315,2]
[313234668,1706985040003,-2420.27,0.00029315,2]
[313234669,1706985040012,-1034.52,0.00029315,2]
[313234670,1706985040024,-8668.59935887,0.0002945,4]
[313234671,1706985040034,-500.0,0.00029589,2]
[313234672,1706985040043,-500.0,0.00029589,2]
[313234673,1706985040052,-554.56,0.00029589,2]
[313234674,1706985040061,-470.37861029,0.00029589,2]
[313234675,1706985040113,-29.62138971,0.00029589,2]
[313234676,1706985040124,-500.0,0.00029589,2]
[313234677,1706985040133,-4486.95,0.00029589,2]
[313234678,1706985040142,-2420.27,0.00029589,2]
[313234679,1706985040151,-1034.52,0.00029589,2]
[313234680,1706985040160,-500.0,0.00029863,2]
[313234681,1706985040169,-554.56,0.00029863,2]
[313234682,1706985040178,-500.0,0.00029863,2]
[313234684,1706985040187,-500.0,0.00029863,2]
[313234686,1706985040196,-4486.95,0.00029863,2]
[313234687,1706985040205,-2420.27,0.00029863,2]
[313234688,1706985040214,-1034.52,0.00029863,2]
[313234689,1706985040223,-11116.43467525,0.00029999,3]
[313234690,1706985040231,-246.09856153,0.00029999,2]
[313234691,1706985040240,-500.0,0.00029999,2]
[313234692,1706985040249,-604.76486554,0.00029999,2]
[313234693,1706985040260,-589.21249447,0.00029999,2]
[313234694,1706985040269,-230.31306798,0.00029999,2]
[313234695,1706985040278,-1513.1596849,0.0003,2]
[313234725,1706985046070,-500.0,0.00027397,2]
[313234726,1706985046080,-500.0,0.00027671,2]
[313234727,1706985046089,-500.0,0.00027945,2]
[313234728,1706985046099,-272.25109537,0.00028219,2]
[313234729,1706985046124,-227.74890463,0.00028219,2]
[313234730,1706985046137,-41.12977295,0.00028493,2]
[313234864,1706986232252,-326.17134224,0.00022685,2]
[313234865,1706986232262,-2820.01011613,0.00022686,2]
[313234866,1706986232272,-155.01860223,0.00022686,2]
[313234867,1706986232281,-155.01860223,0.00022686,2]
[313234868,1706986232290,-155.01860223,0.00022687,2]
[313234869,1706986232299,-639.85213328,0.00022687,2]
[313234870,1706986232309,-155.01860223,0.00022688,4]
[313234871,1706986232318,-155.01860223,0.00022688,2]
[313234872,1706986232336,-2834.01654202,0.00022688,2]
[313234873,1706986232350,-232.26717277,0.00022689,2]
[313234874,1706986232360,-166.666666,0.00022703,2]
[313234875,1706986232369,-1262.10938839,0.00023,2]
[313234876,1706986232379,-267.80044459,0.00023,2]
[313234976,1706986244379,-199.59356808,0.00022685,2]
[313234977,1706986244390,-155.01860223,0.00022685,4]
[313234978,1706986244400,-3565.30497055,0.00023,2]
[313234979,1706986244437,-6126.87519352,0.00023,2]
[313234980,1706986244450,-166.666666,0.00023322,2]
[313234981,1706986244461,-3038.80877855,0.00023513,2]
[313234982,1706986244476,-557.01918591,0.00023513,2]
[313234983,1706986244599,-166.666666,0.00023941,2]
[313234984,1706986244609,-2693.77301556,0.00024,2]
[313234999,1706986246317,-1342.05231015,0.00024,2]
[313235000,1706986246327,-2041.12977295,0.00024403,2]
[313235001,1706986246336,-211.53593384,0.00024406,2]
[313235014,1706986246555,-1863.4502506,0.00024406,2]
[313235016,1706986246566,-431.29470481,0.00024406,2]
[313235017,1706986246576,-166.666666,0.0002456,2]
[313235018,1706986246585,-499.59176388,0.0002496,5]
[313235019,1706986246594,-1830.59711929,0.00025,2]
[313235020,1706986246603,-4734.00424096,0.00025,2]
[313235021,1706986246613,-1009.66283659,0.00025,2]
[313235022,1706986246622,-7139.33282423,0.00025,2]
[313235023,1706986246633,-166.666666,0.00025179,2]
[313235024,1706986246643,-200.0,0.00025479,2]
[313235025,1706986246655,-166.666666,0.00025798,2]
[313235026,1706986246665,-200.0,0.00025857,7]
[313235027,1706986246674,-150.67095252,0.00025993,2]
[313235028,1706986246683,-8059.8802942,0.00026079,2]
[313235029,1706986246695,-4832.2,0.00026079,2]
[313235030,1706986246706,-8955.77748256,0.00026079,2]
[313235031,1706986246715,-1700.38,0.00026083,3]
[313235032,1706986246724,-3072.23,0.00026083,3]
[313235033,1706986246733,-2560.19,0.00026083,3]
[313235034,1706986246742,-309.9364903,0.00026092,2]
[313235035,1706986246751,-1574.45363446,0.00026092,2]
[313235036,1706986246761,-232.26717277,0.00026092,2]
[313235037,1706986246769,-7607.75859605,0.00026093,2]
[313235099,1706987432396,-155.01705188,0.00021303,2]
[313235101,1706987432406,-689.47929116,0.00021303,2]
[313235103,1706987432415,-232.26717277,0.00021304,2]
[313235105,1706987432424,-639.85213328,0.00021305,2]
[313235107,1706987432433,-731.93567614,0.00021305,2]
[313235109,1706987432443,-155.01705188,0.00021306,2]
[313235111,1706987432452,-169.339384,0.00021307,2]
[313235113,1706987432461,-199.3903337,0.00021415,2]
[313235116,1706987432471,-326.17134224,0.00022,2]
[313235119,1706987432480,-199.59356808,0.00022093,2]
[313235122,1706987432490,-2820.01011613,0.00022093,2]
[313235125,1706987432499,-166.666666,0.00022137,2]
[313235128,1706987432509,-891.74015421,0.00022397,2]
[313235131,1706987432518,-24900.0,0.00022397,2]
[313235134,1706987432527,-166.666666,0.0002274,2]
[313235137,1706987432536,-167.943569,0.00022999,2]
[313235140,1706987432545,-1262.10938839,0.00023,2]
[313235142,1706987432554,-9959.98060866,0.00023,2]
[313235145,1706987432563,-166.666666,0.00023344,2]
[313235148,1706987432572,-1574.45363446,0.00023471,2]
[313235151,1706987432581,-166.666666,0.00023947,2]
[313235153,1706987432590,-2468.48543359,0.00023992,2]
[313235155,1706987432599,-3492.24028975,0.00024143,2]
[313235157,1706987432607,-799.38119905,0.00024406,2]
[313235159,1706987432616,-656.3467157,0.00024406,2]
[313235161,1706987432625,-210.0,0.00024406,2]
[313235163,1706987432634,-166.666666,0.00024551,2]
[313235165,1706987432643,-155.0341075,0.00024636,2]
[313235167,1706987432652,-1743.90819804,0.00024637,2]
[313235169,1706987432662,-37028.48161745,0.00024638,2]
[313235171,1706987432670,-47921.51740795,0.00024639,2]
[313235213,1706987438465,-155.01705188,0.00021302,4]
[313235215,1706987438474,-2078.48259205,0.00024639,2]
[313235217,1706987438484,-310.99959369,0.0002496,5]
[313235219,1706987438493,-653.59416934,0.00025,10]
[313235221,1706987438502,-294.78468304,0.00025,2]
[313235235,1706987441666,-1747.10116315,0.00025,2]
[313235236,1706987441675,-4397.71584247,0.00025,2]
[313235237,1706987441685,-4734.00424096,0.00025,2]
[313235238,1706987441694,-7139.33282423,0.00025,2]
[313235239,1706987441703,-1830.59711929,0.00025,2]
[313235240,1706987441713,-534.69538579,0.00025,2]
[313235241,1706987441726,-166.666666,0.00025154,2]
[313235242,1706987441735,-869.18055187,0.00025297,2]
[313235243,1706987441744,-200.0,0.00025299,7]
[313235244,1706987441753,-891.74015417,0.0002538,2]
[313235245,1706987441763,-2133.5,0.00026083,3]
[313235246,1706987441772,-163.52694027,0.00026089,2]
[313235247,1706987441781,-168.88418216,0.00026089,2]
[313235248,1706987441790,-310.01860161,0.00026089,2]
[313235249,1706987441802,-203.99646444,0.0002609,2]
[313235250,1706987441812,-175.35339292,0.0002609,2]
[313235251,1706987441821,-208.55667227,0.00026091,2]
[313235252,1706987441830,-262.11572142,0.00026091,2]
[313235253,1706987441840,-4035.82532671,0.00026091,2]
[313235254,1706987441849,-303.12913493,0.00026091,2]
[313235255,1706987441858,-200.0,0.00026091,2]
[313235256,1706987441866,-156.89852046,0.00026091,2]
[313235257,1706987441876,-176.62150831,0.00026091,2]
[313235258,1706987441885,-158.83351877,0.00026091,2]
[313235259,1706987441894,-309.9689732,0.00026091,2]
[313235260,1706987441903,-1584.05603829,0.00026091,2]
[313235261,1706987441912,-159.22305658,0.00026091,2]
[313235262,1706987441921,-155.0310062,0.00026091,2]
[313235263,1706987441930,-158.36167953,0.00026091,2]
[313235264,1706987442032,-11037.19090336,0.00026091,2]
[313235265,1706987442041,-3969.42099078,0.00026091,2]
[313235266,1706987442050,-155.25728071,0.00026091,2]
[313235267,1706987442059,-216.59791271,0.00026091,2]
[313235268,1706987442068,-161.51468438,0.00026091,2]
[313235269,1706987442077,-679.47851073,0.00026091,2]
[313235270,1706987442086,-155.76848449,0.00026091,2]
[313235271,1706987442095,-240.61520942,0.00026091,2]
[313235272,1706987442104,-193.60117205,0.00026091,2]
[313235273,1706987442114,-2045.80640197,0.00026091,2]
[313235274,1706987442123,-299.25769891,0.00026091,2]
[313235275,1706987442132,-606.80025969,0.00026091,2]
[313235276,1706987442141,-156.29322352,0.00026091,2]
[313235277,1706987442150,-224.97311024,0.00026091,2]
[313235278,1706987442159,-303.69097792,0.00026091,2]
[313235279,1706987442168,-259.60253236,0.00026091,2]
[313235280,1706987442177,-201.37502849,0.00026091,2]
[313235281,1706987442186,-155.19934607,0.00026091,2]
[313235282,1706987442195,-155.12596294,0.00026092,2]
[313235283,1706987442204,-5526.49624967,0.00026093,2]
[313235320,1706987444407,-937.99234842,0.00026093,2]
[313235357,1706987446499,-169.76040992,0.00026091,2]
[313235358,1706987446510,-290.90007483,0.00026092,2]
[313235359,1706987446520,-1719.33401975,0.00026093,2]
[313235360,1706987446553,-938.95766712,0.00026093,2]
[313235459,1706988633498,-232.26717277,0.00021379,2]
[313235461,1706988633520,-155.01240099,0.0002138,2]
[313235463,1706988633537,-155.01240099,0.00021381,2]
[313235465,1706988633562,-155.01240099,0.00021382,2]
[313235467,1706988633579,-155.01240099,0.00021382,2]
[313235468,1706988633599,-2820.01011613,0.00021382,2]
[313235470,1706988633623,-155.01240099,0.00021383,4]
[313235472,1706988633642,-38.56501086,0.00021383,2]
[313235561,1706988639582,-330.23570657,0.00021379,2]
[313235562,1706988639597,-570.62382899,0.00021383,2]
[313235564,1706988639615,-5219.85027609,0.00021383,2]
[313235566,1706988639628,-209.0347316,0.00021472,2]
[313235567,1706988639641,-14228.0750827,0.00021487,2]
[313235568,1706988639658,-17827.7739326,0.00021497,2]
[313235569,1706988639675,-166.666666,0.00021918,2]
[313235570,1706988639696,-166.666666,0.00022431,2]
[313235571,1706988639716,-166.666666,0.00022944,2]
[313235572,1706988639730,-1262.10938839,0.00023,2]
[313235573,1706988639754,-166.666666,0.00023456,2]
[313235574,1706988639792,-200.0,0.00023535,7]
[313235575,1706988639814,-166.666666,0.00023969,2]
[313235576,1706988639841,-9959.98060866,0.0002399,2]
[313235577,1706988639864,-1645.65695572,0.00023991,2]
[313235578,1706988639884,-430.04443012,0.000243,2]
[313235579,1706988639902,-384.64697665,0.00024398,2]
[313235580,1706988639919,-199.53725951,0.00024398,2]
[313235581,1706988639933,-155.01550155,0.00024398,2]
[313235582,1706988639958,-155.01550127,0.00024398,2]
[313235583,1706988639972,-679.2164194,0.00024398,2]
[313235584,1706988639995,-628.41416648,0.00024398,2]
[313235585,1706988640010,-201.33218989,0.00024398,2]
[313235586,1706988640038,-16382.48692134,0.00024399,2]
[313235587,1706988640062,-1000.0,0.00024399,2]
[313235588,1706988640081,-1000.0,0.00024399,2]
[313235589,1706988640097,-1000.0,0.00024399,2]
[313235590,1706988640113,-1000.0,0.00024399,2]
[313235591,1706988640127,-1000.0,0.00024399,2]
[313235592,1706988640140,-1000.0,0.00024399,2]
[313235593,1706988640155,-1650.00942205,0.000244,2]
[313235594,1706988640241,-16454.31764287,0.000244,2]
[313235595,1706988640258,-11784.65894568,0.000244,2]
[313235596,1706988640277,-620.14304204,0.00024403,2]
[313235597,1706988640305,-1484.90398951,0.00024404,2]
[313235598,1706988640329,-1509.87215885,0.00024406,2]
[313235599,1706988640343,-2758.96569359,0.00024406,2]
[313235600,1706988640358,-172.57610458,0.00024412,2]
[313235601,1706988640378,-166.666666,0.00024482,2]
[313235602,1706988640396,-50000.0,0.00024676,2]
[313235603,1706988640417,-430.04443011,0.00024723,2]
[313235604,1706988640431,-534.69538579,0.00025,2]
[313235605,1706988640460,-4734.00424096,0.00025,2]
[313235606,1706988640477,-7139.33282423,0.00025,2]
[313235607,1706988640491,-1830.59711929,0.00025,2]
[313235608,1706988640504,-430.04443011,0.00025146,2]
[313235609,1706988640521,-430.04443011,0.00025568,2]
[313235610,1706988640546,-3022.81629331,0.00025569,2]
[313235611,1706988640566,-280.0,0.00025888,7]
[313235612,1706988640587,-430.04443011,0.00025991,2]
[313235613,1706988640606,-500.0,0.00025992,2]
[313235614,1706988640622,-500.0,0.00025992,2]
[313235615,1706988640638,-500.0,0.00025992,2]
[313235616,1706988640655,-500.0,0.00025992,2]
[313235617,1706988640667,-412.5264485,0.00025992,2]
[313235618,1706988640682,-500.0,0.00025992,2]
[313235619,1706988640696,-156.35796755,0.00025992,2]
[313235620,1706988640710,-500.0,0.00025992,2]
[313235621,1706988640733,-500.0,0.00025992,2]
[313235622,1706988640754,-500.0,0.00025992,2]
[313235623,1706988640777,-500.0,0.00025992,2]
[313235624,1706988640801,-400.25727656,0.00025992,2]
[313235625,1706988640822,-500.0,0.00025992,2]
[313235626,1706988640849,-362.90320273,0.00025992,2]
[313235627,1706988640870,-500.0,0.00025992,2]
[313235628,1706988640896,-244.13265463,0.00025992,2]
[313235629,1706988640929,-425.31454102,0.00025992,2]
[313235630,1706988640953,-500.0,0.00025992,2]
[313235631,1706988640975,-500.0,0.00025992,2]
[313235632,1706988640994,-500.0,0.00025992,2]
[313235633,1706988641015,-500.0,0.00025992,2]
[313235634,1706988641036,-500.0,0.00025992,2]
[313235635,1706988641058,-634.03071431,0.00025992,2]
[313235636,1706988641079,-500.0,0.00025992,2]
[313235637,1706988641093,-500.0,0.00025992,2]
[313235638,1706988641112,-500.0,0.00025992,2]
[313235639,1706988641132,-500.0,0.00025992,2]
[313235640,1706988641150,-500.0,0.00025992,2]
[313235641,1706988641165,-500.0,0.00025992,2]
[313235643,1706988641178,-500.0,0.00025992,2]
[313235645,1706988641192,-500.0,0.00025992,2]
[313235647,1706988641208,-641.50716099,0.00025992,2]
[313235649,1706988641224,-500.0,0.00025992,2]
[313235651,1706988641240,-500.0,0.00025992,2]
[313235653,1706988641258,-500.0,0.00025992,2]
[313235655,1706988641295,-500.0,0.00025992,2]
[313235657,1706988641319,-500.0,0.00025992,2]
[313235660,1706988641342,-191108.54851525,0.00025993,2]
[313235662,1706988641375,-283.33666478,0.00026091,2]
[313235664,1706988641390,-1295.2641633,0.00026091,2]
[313235666,1706988641409,-165.88813996,0.00026091,2]
[313235668,1706988641426,-4020.32440334,0.00026091,2]
[313235669,1706988641448,-265.25547221,0.00026091,2]
[313235670,1706988641466,-904.83318342,0.00026091,2]
[313235671,1706988641484,-3317.77219557,0.00026091,2]
[313235672,1706988641509,-245.08977524,0.00026091,2]
[313235673,1706988641524,-5598.40634948,0.00026092,2]
[313235675,1706988641542,-14129.9962747,0.00026093,2]
[313235676,1706988641569,-3198.8896153,0.00026093,2]
[313235677,1706988641599,-155.01860223,0.00026093,2]
[313235678,1706988641618,-2086.73700022,0.00026093,2]
[313235679,1706988641651,-1828.0659992,0.00026093,2]
[313235680,1706988641670,-212.09151868,0.00026093,2]
[313235681,1706988641691,-235.01682964,0.00026093,2]
[313235682,1706988641706,-155.01395126,0.00026093,2]
[313235683,1706988641724,-50000.0,0.00026101,2]
[313235684,1706988641740,-151.591208,0.00026101,2]
[313235685,1706988641759,-151.0,0.00026101,2]
[313235686,1706988641778,-151.0,0.00026101,2]
[313235687,1706988641808,-151.0,0.00026101,2]
[313235688,1706988641827,-151.0,0.00026101,2]
[313235689,1706988641852,-151.0,0.00026101,2]
[313235690,1706988641873,-235.364499,0.00026101,2]
[313235691,1706988641888,-235.364499,0.00026101,2]
[313235693,1706988641908,-756.766733,0.00026101,2]
[313235694,1706988641939,-756.766733,0.00026101,2]
[313235695,1706988641966,-151.0,0.00026101,2]
[313235696,1706988641983,-151.0,0.00026101,2]
[313235697,1706988641996,-1843.378755,0.00026101,2]
[313235698,1706988642014,-1843.378755,0.00026101,2]
[313235699,1706988642036,-151.0,0.00026101,2]
[313235700,1706988642065,-269.50738772,0.00026117,2]
[313235701,1706988642078,-3042.35704653,0.00026117,2]
[313235702,1706988642110,-55191.49846943,0.0002613,2]
[313235703,1706988642126,-151.0,0.0002613,2]
[313235704,1706988642148,-151.0,0.0002613,2]
[313235705,1706988642173,-151.0,0.0002613,2]
[313235706,1706988642189,-13658.58015719,0.0002613,2]
[313235707,1706988642209,-151.0,0.0002613,2]
[313235708,1706988642236,-151.0,0.0002613,2]
[313235709,1706988642251,-235.364499,0.0002613,2]
[313235710,1706988642276,-235.364499,0.0002613,2]
[313235711,1706988642294,-756.766733,0.0002613,2]
[313235712,1706988642321,-756.766733,0.0002613,2]
[313235713,1706988642344,-234.206179,0.0002613,2]
[313235714,1706988642359,-151.0,0.0002613,2]
[313235715,1706988642377,-1843.378755,0.0002613,2]
[313235716,1706988642395,-1843.378755,0.0002613,2]
[313235717,1706988642418,-151.0,0.0002613,2]
[313235718,1706988642441,-2684.03748234,0.0002614,2]
[313235719,1706988642458,-1000.0,0.00026892,3]
[313235720,1706988642475,-1000.0,0.00026894,3]
[313235721,1706988642500,-17170.66227847,0.00027396,2]
[313235722,1706988642521,-500.0,0.00027397,2]
[313235723,1706988642549,-500.0,0.00027397,2]
[313235724,1706988642567,-500.0,0.00027397,2]
[313235725,1706988642592,-330.28082269,0.00027397,2]
[313235726,1706988642611,-500.0,0.00027397,2]
[313235727,1706988642630,-508.89260792,0.00027397,2]
[313235729,1706988642655,-622.94208789,0.00027397,2]
[313235731,1706988642670,-507.16856212,0.00027397,2]
[313235732,1706988642690,-500.0,0.00027397,2]
[313235733,1706988642715,-572.87907255,0.00027397,2]
[313235734,1706988642740,-500.0,0.00027397,2]
[313235736,1706988642761,-1000.0,0.00027397,2]
[313235737,1706988642783,-500.0,0.00027397,2]
[313235738,1706988642808,-151.0,0.00027397,2]
[313235740,1706988642826,-293.924429,0.00027397,2]
[313235741,1706988642853,-151.0,0.00027397,2]
[313235742,1706988642876,-504.35120584,0.00027397,2]
[313235743,1706988642912,-500.0,0.00027397,2]
[313235744,1706988642937,-500.0,0.00027397,2]
[313235745,1706988642959,-151.0,0.00027397,2]
[313235746,1706988642974,-500.0,0.00027397,2]
[313235747,1706988642990,-500.0,0.00027397,2]
[313235748,1706988643014,-500.0,0.00027397,2]
[313235749,1706988643048,-500.0,0.00027397,2]
[313235750,1706988643077,-500.0,0.00027397,2]
[313235751,1706988643106,-500.0,0.00027397,2]
[313235752,1706988643125,-500.0,0.00027397,2]
[313235753,1706988643147,-500.0,0.00027397,2]
[313235754,1706988643181,-235.364499,0.00027397,2]
[313235755,1706988643211,-235.364499,0.00027397,2]
[313235756,1706988643235,-505.17221815,0.00027397,2]
[313235757,1706988643258,-501.84263882,0.00027397,2]
[313235758,1706988643279,-513.0014778,0.00027397,2]
[313235759,1706988643308,-500.0,0.00027397,2]
[313235760,1706988643338,-500.0,0.00027397,2]
[313235761,1706988643359,-500.0,0.00027397,2]
[313235762,1706988643385,-500.0,0.00027397,2]
[313235763,1706988643424,-500.0,0.00027397,2]
[313235764,1706988643448,-500.0,0.00027397,2]
[313235765,1706988643467,-502.51678686,0.00027397,2]
[313235766,1706988643488,-506.04525532,0.00027397,2]
[313235769,1706988643627,-500.0,0.00027397,2]
[313235771,1706988643651,-756.766733,0.00027397,2]
[313235773,1706988643671,-756.766733,0.00027397,2]
[313235775,1706988643688,-500.0,0.00027397,2]
[313235777,1706988643701,-500.0,0.00027397,2]
[313235779,1706988643718,-509.68515022,0.00027397,2]
[313235781,1706988643732,-503.16532619,0.00027397,2]
[313235782,1706988643749,-501.30383825,0.00027397,2]
[313235785,1706988643770,-500.0,0.00027397,2]
[313235786,1706988643789,-500.0,0.00027397,2]
[313235787,1706988643808,-517.55,0.00027397,2]
[313235788,1706988643826,-500.0,0.00027397,2]
[313235789,1706988643853,-500.0,0.00027397,2]
[313235790,1706988643872,-500.0,0.00027397,2]
[313235791,1706988643894,-500.0,0.00027397,2]
[313235792,1706988643910,-500.0,0.00027397,2]
[313235793,1706988643926,-500.0,0.00027397,2]
[313235794,1706988643946,-500.0,0.00027397,2]
[313235795,1706988643966,-504.36232672,0.00027397,2]
[313235796,1706988643986,-1843.378755,0.00027397,2]
[313235797,1706988644006,-503.88676801,0.00027397,2]
[313235798,1706988644031,-1843.378755,0.00027397,2]
[313235799,1706988644054,-510.91289782,0.00027397,2]
[313235800,1706988644069,-459.55495517,0.00027397,2]
[313235801,1706988644083,-505.33797762,0.00027397,2]
[313235802,1706988644097,-500.0,0.00027397,2]
[313235803,1706988644109,-503.82449988,0.00027397,2]
[313235804,1706988644122,-500.0,0.00027397,2]
[313235805,1706988644144,-500.0,0.00027397,2]
[313235806,1706988644162,-500.0,0.00027397,2]
[313235807,1706988644189,-151.0,0.00027397,2]
[313235808,1706988644214,-500.0,0.00027397,2]
[313235809,1706988644234,-500.0,0.00027397,2]
[313235810,1706988644250,-500.0,0.00027397,2]
[313235811,1706988644265,-500.0,0.00027397,2]
[313235812,1706988644290,-500.0,0.00027397,2]
[313235813,1706988644315,-389.77919623,0.00027397,2]
[313235814,1706988644348,-500.0,0.00027397,2]
[313235815,1706988644366,-500.0,0.00027397,2]
[313235816,1706988644382,-500.0,0.00027397,2]
[313235817,1706988644406,-500.0,0.00027397,2]
[313235818,1706988644435,-500.0,0.00027397,2]
[313235819,1706988644462,-1721.05,0.00027397,2]
[313235820,1706988644496,-500.0,0.00027397,2]
[313235821,1706988644519,-623.6126598,0.00027397,2]
[313235822,1706988644541,-500.0,0.00027397,2]
[313235823,1706988644567,-500.0,0.00027397,2]
[313235824,1706988644590,-3193.62,0.00027397,2]
[313235825,1706988644620,-1676.01,0.00027397,2]
[313235826,1706988644649,-250.07075875,0.00027397,2]
[313235827,1706988644664,-500.0,0.00027397,2]
[313235828,1706988644689,-500.0,0.00027397,2]
[313235829,1706988644714,-712.75,0.00027397,2]
[313235830,1706988644734,-506.15,0.00027397,2]
[313235831,1706988644754,-500.0,0.00027397,2]
[313235832,1706988644773,-500.0,0.00027397,2]
[313235833,1706988644793,-503.48064468,0.00027397,2]
[313235834,1706988644808,-500.0,0.00027397,2]
[313235835,1706988644826,-500.0,0.00027397,2]
[313235836,1706988644842,-500.0,0.00027397,2]
[313235837,1706988644861,-500.0,0.00027397,2]
[313235838,1706988644877,-400.74955447,0.00027397,2]
[313235839,1706988644895,-150.1,0.00027397,2]
[313235840,1706988644907,-500.0,0.00027534,2]
[313235841,1706988644923,-151.0,0.00027534,2]
[313235842,1706988644938,-8668.59935887,0.0002759,4]
[313235843,1706988644956,-235.364499,0.0002759,2]
[313235844,1706988644970,-235.364499,0.0002759,2]
[313235845,1706988644993,-756.766733,0.0002759,2]
[313235846,1706988645018,-756.766733,0.0002759,2]
[313235847,1706988645032,-1843.378755,0.0002759,2]
[313235848,1706988645054,-1843.378755,0.0002759,2]
[313235849,1706988645077,-500.0,0.00027671,2]
[313235850,1706988645092,-500.0,0.00027671,2]
[313235851,1706988645116,-537.66381082,0.00027671,2]
[313235852,1706988645134,-373.70565358,0.00027671,2]
[313235853,1706988645159,-500.0,0.00027671,2]
[313235854,1706988645179,-1000.0,0.00027671,2]
[313235855,1706988645209,-505.01286985,0.00027671,2]
[313235856,1706988645234,-151.0,0.00027671,2]
[313235857,1706988645259,-151.0,0.00027671,2]
[313235858,1706988645281,-500.0,0.00027671,2]
[313235859,1706988645301,-226.96975,0.00027671,2]
[313235860,1706988645320,-500.0,0.00027671,2]
[313235861,1706988645343,-265.74222748,0.00027671,2]
[313235862,1706988645368,-500.0,0.00027671,2]
[313235863,1706988645386,-500.0,0.00027671,2]
[313235864,1706988645406,-500.0,0.00027671,2]
[313235865,1706988645423,-500.0,0.00027671,2]
[313235866,1706988645443,-500.0,0.00027671,2]
[313235867,1706988645460,-500.0,0.00027671,2]
[313235868,1706988645480,-635.22,0.00027671,2]
[313235869,1706988645502,-500.0,0.00027671,2]
[313235870,1706988645518,-500.0,0.00027671,2]
[313235871,1706988645533,-500.0,0.00027671,2]
[313235872,1706988645550,-500.0,0.00027671,2]
[313235873,1706988645589,-500.0,0.00027671,2]
[313235874,1706988645620,-500.0,0.00027671,2]
[313235875,1706988645638,-500.0,0.00027671,2]
[313235876,1706988645655,-500.0,0.00027671,2]
[313235877,1706988645681,-500.0,0.00027671,2]
[313235878,1706988645695,-506.61538217,0.00027671,2]
[313235879,1706988645720,-500.0,0.00027671,2]
[313235880,1706988645745,-500.0,0.00027671,2]
[313235881,1706988645765,-504.93048454,0.00027671,2]
[313235882,1706988645790,-500.0,0.00027671,2]
[313235883,1706988645825,-500.0,0.00027671,2]
[313235884,1706988645854,-485.06,0.00027671,2]
[313235885,1706988645876,-373.48,0.00027671,2]
[313235886,1706988645912,-500.0,0.00027671,2]
[313235887,1706988645943,-500.0,0.00027671,2]
[313235888,1706988645967,-299.27,0.00027671,2]
[313235889,1706988645982,-504.68330874,0.00027671,2]
[313235890,1706988645999,-500.0,0.00027671,2]
[313235891,1706988646013,-500.0,0.00027671,2]
[313235892,1706988646038,-500.0,0.00027671,2]